Cogmind - Beta 15 @@@ ROGUE MODE // 2025.08.25 @ 14:46:13 Player: TapeIsSticky Result: Destroyed by 8K-SXX(R) with Subdweller Beam Cannon Performance ------------- Evolutions (0) 0 Regions Visited (2) 400 Robots Destroyed (31) 155 Value Destroyed (535) 535 Prototype IDs (0) 0 Alien Tech Used (0) 0 Bonus (0) 0 TOTAL SCORE: 1090 Bonus ------- None Cogmind --------- Core Integrity 0/250 Matter 300/300 Energy 100/100 System Corruption 0% Temperature Cool (9) Movement Core (350) Ox6 Location -10/Subcaves Parts ------- > --- POWER (1) -------- (None) > --- PROPULSION (2) --- (None) > --- UTILITY (2) ------ Large Storage Unit > --- WEAPON (2) ------- (None) > --- INVENTORY (15) --- Ion Engine Light Ion Engine Light Treads Light Treads Light Treads Light Treads Compact Wheel Medium Storage Unit High-capacity Storage Unit Huge Storage Unit Seismic Detector Seismic Detector Peak State ------------ > --- POWER ------------ Ion Engine > --- PROPULSION ------- Light Treads Light Treads > --- UTILITY ---------- Medium Storage Unit Seismic Detector > --- WEAPON ----------- Small Laser Assault Rifle > --- INVENTORY -------- Ion Engine Light Ion Engine Light Treads Light Treads Light Treads Light Treads Compact Wheel Small Storage Unit Seismic Detector Light Armor Plating [Rating: 8] Favorites ----------- Power Ion Engine Engine Ion Engine Propulsion Light Treads Treads Light Treads Utility Seismic Detector Device Seismic Detector Storage Medium Storage Unit Protection Light Armor Plating Weapon Assault Rifle Energy Gun Small Laser Ballistic Gun Assault Rifle Build | -11 -10 -10 ------- Run | Yrd Mat Sub Slots Evolved . | . . . Power . | . . . Propulsion . | . . . Utility . | . . . Weapon . | . . . Parts Attached 15 | 7 7 1 Power 3 | 1 2 . Engine 3 | 1 2 . Core . | . . . Reactor . | . . . Propulsion 4 | 2 2 . Treads 4 | 2 2 . Leg . | . . . Wheel . | . . . Hover . | . . . Flight . | . . . Utility 5 | 2 2 1 Device 1 | 1 . . Storage 3 | 1 2 . Processor . | . . . Hackware . | . . . Protection 1 | . . 1 Artifact . | . . . Weapon 3 | 2 1 . Energy Gun 2 | 1 1 . Energy Cannon . | . . . Ballistic Gun 1 | 1 . . Ballistic Cannon . | . . . Launcher . | . . . Special Weapon . | . . . Impact Weapon . | . . . Slashing Weapon . | . . . Piercing Weapon . | . . . Special Melee Weapon . | . . . Unidentified Prototypes . | . . . Parts Lost 7 | . 1 6 Power 2 | . 1 1 Propulsion 2 | . . 2 Utility 1 | . . 1 Weapon 2 | . . 2 Highest Loss Streak 6 | . 1 6 To Critical Strikes . | . . . Average Backups 6 | 1 6 12 Power 1 | . 1 2 Propulsion 2 | . 2 5 Utility 2 | . 2 5 Weapon . | . . . Tool/Special . | . . . Unused Backups 8 | . . 8 Power 1 | . . 1 Propulsion 4 | . . 4 Utility 3 | . . 3 Weapon . | . . . Tool/Special . | . . . Average Slot Usage (%) 98 | . 99 84 Engine 13 | . 13 12 Treads 27 | . 28 26 Device 13 | . 14 3 Storage 14 | . 14 14 Energy Gun 13 | . 14 9 Ballistic Gun 13 | . 13 10 Peak Build Rating 8 | 7 8 8 Average Rating 7 | 5 7 6 On Entrance 5 | . 7 8 Naked Turns . | . . . Heaviest Build 30 | 14 30 28 Greatest Support 40 | 40 40 40 Greatest Overweight (x) 4 | 4 . . Average Overweight (x) . | . . . Largest Inventory Capacity 15 | 8 15 15 Average Capacity 10 | 7 10 15 Most Carried 12 | 3 12 12 Average Carried 6 | 1 6 12 Final Capacity 15 | 8 15 15 Final Carried 12 | 3 12 12 Class Distribution -------------------- 100% | Mutant Dominant Class ---------------- Mutant | -10/Materials Mutant | -10/Subcaves Resources | -11 -10 -10 ----------- Run | Yrd Mat Sub Matter Collected 565 | 300 265 . Remotely . | . . . Salvage Created 922 | 146 717 59 Parts 64 | 17 45 2 Haulers Intercepted 1 | . 1 . Recyclers Shooed . | . . . Parts Field Recycled . | . . . Retrieved Matter . | . . . Parts Self-Destructed . | . . . Prevented . | . . . Kills | -11 -10 -10 ------- Run | Yrd Mat Sub Combat Hostiles Destroyed 21 | . 20 1 Guns 21 | . 20 1 Classes Destroyed 7 | 2 4 1 Tunneler 4 | 4 . . Hauler 1 | . 1 . Recycler 2 | 1 1 . Watcher 3 | . 3 . Swarmer 12 | . 12 . Grunt 8 | . 8 . Subdweller 1 | . . 1 Best Kill Streak 5 | 4 5 1 Combat Bots Only 3 | . 3 1 Max Kills in Single Turn 2 | 1 2 1 Gunslinging 1 | . 1 . Exploded . | . . . Melee . | . . . Uniques/NPCs Destroyed . | . . . Combat | -11 -10 -10 -------- Run | Yrd Mat Sub Hostile Shots Fired 114 | . 82 32 Missed 34 | . 25 9 Hits 80 | . 57 23 Projectile 80 | . 57 23 Damage Taken 1180 | . 574 606 Core 251 | . 105 146 Absorbed by Shields . | . . . Regen/Repaired (Parts) 91 | . 91 . Core Remaining (%) 100 | 100 . . Volleys Fired 82 | 10 58 14 Largest 2 | 2 2 2 Hottest 70 | 60 70 70 Shots Fired 158 | 20 114 24 Gun 158 | 20 114 24 Cannon . | . . . Launcher . | . . . Special . | . . . Kinetic 82 | 10 58 14 Thermal 76 | 10 56 10 Explosive . | . . . Electromagnetic . | . . . Robot Hit Streak 12 | 4 8 12 Robot Miss Streak 2 | 2 2 2 Penetration Max . | . . . Secondary Targets 8 | . 7 1 Max Gunslinging Chain 1 | . 1 1 Shots Hit Robots 107 | 11 76 20 Core Hits 48 | 6 38 4 Critical Kills . | . . . Critical Parts Destroyed . | . . . Critical Strikes 4 | . 2 2 Burn 4 | . 2 2 Melee Attacks . | . . . Impact . | . . . Slashing . | . . . Piercing . | . . . Sneak Attacks . | . . . Combat Hostiles . | . . . Follow-up Attacks . | . . . Damage Inflicted 1392 | 144 985 263 Guns 1332 | 144 948 240 Cannons . | . . . Explosions . | . . . Melee . | . . . Ramming 60 | . 37 23 Kinetic 712 | 88 484 140 Thermal 620 | 56 464 100 Explosive . | . . . Electromagnetic . | . . . Impact . | . . . Slashing . | . . . Piercing . | . . . Highest Corruption . | . . . Average Corruption . | . . . Corruption Purged . | . . . Corruption Blocked . | . . . Overload Shots . | . . . Overflow Damage . | . . . Projectiles . | . . . Explosions . | . . . Melee . | . . . Knockbacks 2 | . 1 1 Impact 2 | . 1 1 Kinetic . | . . . Secondary . | . . . Self-Inflicted Damage . | . . . Shots . | . . . Rammed 13 | . 6 7 Targets Rammed 13 | . 6 7 Kicked . | . . . Crushed . | . . . Highest Temperature 225 | . 225 . Average Temperature 69 | . 69 . Received Heat Transfer 384 | . 195 189 Siege Activations . | . . . Martial Activations . | . . . Shielding Activations . | . . . Robots Disrupted . | . . . Combat Hostiles . | . . . Robots Corrupted . | . . . Combat Hostiles . | . . . Parts Fried . | . . . Impact Corruptions . | . . . Robots Melted . | . . . Combat Hostiles . | . . . Parts Melted 4 | . 3 1 Heat Transferred 1933 | 125 1364 444 Parts Sabotaged . | . . . Parts Stolen . | . . . Parts Stripped . | . . . Power Chain Reactions . | . . . Alert | -11 -10 -10 ------- Run | Yrd Mat Sub Maximum Alert Level 1 | . 1 . Low Security (%) 96 | 100 96 . Level 1 3 | . 3 . Level 2 . | . . . Level 3 . | . . . Level 4 . | . . . Level 5 . | . . . High Security . | . . . Max Security . | . . . Peak Influence 214 | 15 214 . Initial . | . . . Average 91 | 2 98 . Influence Increases 572 | 25 547 . Destroy 0b10 Robot/C 400 | . 400 . Destroy 0b10 Robot/NC 50 | 25 25 . Destroy Leader 88 | . 88 . Successful Hack 32 | . 32 . Destroy Structure 2 | . 2 . Influence Decreases 572 | 25 380 167 Entered New Map 81 | . . 81 Time Decay 425 | 25 370 30 Lost Part 66 | . 10 56 Squads Dispatched 4 | . 4 . Investigation 2 | . 2 . Extermination . | . . . Reinforcement 2 | . 2 . Assault . | . . . Garrison . | . . . Intercept . | . . . Searches Triggered . | . . . Construction Impeded . | . . . Haulers Reinforced . | . . . Active Scanning Responses . | . . . Cargo Convoy Interrupts . | . . . Stealth | -11 -10 -10 --------- Run | Yrd Mat Sub Distress Signals 1 | . 1 . Communications Jammed . | . . . Distress Signals . | . . . Times Spotted 31 | . 29 2 Peak Tracking Total 6 | . 6 2 Tactical Retreats . | . . . Traps | -11 -10 -10 ------- Run | Yrd Mat Sub Traps Triggered 3 | . 3 . Indirectly . | . . . Trap Hack Attempts . | . . . Triggered . | . . . Disarmed . | . . . Reprogrammed . | . . . Reused . | . . . Traps Extracted . | . . . Installed . | . . . Triggered . | . . . Machines | -11 -10 -10 ---------- Run | Yrd Mat Sub Machines Disabled . | . . . Max in Single Turn . | . . . Machines Repaired . | . . . Machines Dismantled . | . . . Machines Sabotaged . | . . . Overloaded Fab Kills . | . . . Hacking | -11 -10 -10 --------- Run | Yrd Mat Sub Machines Accessed 7 | . 7 . Terminals 5 | . 5 . Fabricators . | . . . Repair Stations 1 | . 1 . Recycling Units 1 | . 1 . Scanalyzers . | . . . Garrison Access . | . . . Total Hacks 16 | . 16 . Successful 11 | . 11 . Failed 4 | . 4 . Catastrophic . | . . . Database Lockouts 1 | . 1 . Manual 14 | . 14 . Terminals 12 | . 12 . Fabricators . | . . . Repair Stations 2 | . 2 . Recycling Units 2 | . 2 . Scanalyzers . | . . . Garrison Access . | . . . Terminal Hacks 1 | . 1 . Robot Analysis 1 | . 1 . Fabricator Hacks . | . . . Repair Station Hacks 2 | . 2 . Scan Component 1 | . 1 . Repair 1 | . 1 . Recycling Unit Hacks 1 | . 1 . Retrieve Components 1 | . 1 . Scanalyzer . | . . . Garrison Access Hacks . | . . . Unauthorized Hacks 7 | . 7 . Terminals 7 | . 7 . Botnet 2 | . 2 . Skim 5 | . 5 . Fabricators . | . . . Repair Stations . | . . . Recycling Units . | . . . Scanalyzers . | . . . Garrison Access . | . . . Data Cores Recovered . | . . . Used . | . . . Hacking Detections 4 | . 4 . Full Trace Events . | . . . Feedback Events . | . . . Feedback Blocked . | . . . Robot Schematics Acquired . | . . . Robots Built . | . . . Authchips . | . . . Time . | . . . Total Robot Build Rating . | . . . Part Schematics Acquired . | . . . Parts Built . | . . . Authchips . | . . . Time . | . . . Total Part Build Rating . | . . . Parts Repaired 1 | . 1 . Time 26 | . 26 . Parts Recycled . | . . . Recycled Matter . | . . . Retrieved Matter . | . . . Retrieved Components 3 | . 3 . Parts Scanalyzed . | . . . Part Schematics Acquired . | . . . Parts Damaged . | . . . Bothacking | -11 -10 -10 ------------ Run | Yrd Mat Sub Used RIF Installer . | . . . Robots Hacked . | . . . Non-combat . | . . . Combat . | . . . Robot Hacks Applied . | . . . Relay Couplers Released . | . . . Fabnet Peak Effective % . | . . . Robots Rewired . | . . . Allies Hacked . | . . . Hacks Repelled . | . . . Allies | -11 -10 -10 -------- Run | Yrd Mat Sub Total Allies . | . . . Largest Group . | . . . Highest-Rated Group . | . . . Highest-Rated Ally . | . . . Total Orders . | . . . Ally Attacks . | . . . Total Damage . | . . . Kills . | . . . Allies Corrupted . | . . . Allies Melted . | . . . Intel | -11 -10 -10 ------- Run | Yrd Mat Sub Active Infowar (turns) 1936 | 53 1877 6 Seismic 1936 | 53 1877 6 Robot Analysis Total 1 | . 1 . Derelict Logs Recovered . | . . . Drone Launches . | . . . Drone Recoveries . | . . . Exploration | -11 -10 -10 ------------- Run | Yrd Mat Sub Turns Passed 2099 | 146 1877 76 Spaces Moved 788 | 68 714 6 Core 18 | 18 . . Treads 770 | 50 714 6 Legs . | . . . Wheels . | . . . Hover . | . . . Flight . | . . . Fastest Speed 50 | 50 160 160 Average Speed 159 | 152 160 160 Slowest Speed 250 | 250 160 160 Overloaded Moves . | . . . Propulsion Burnouts . | . . . Robots Hopped . | . . . Potential Cave-ins . | . . . Cave-ins Triggered . | . . . Exploration Rate (%) 35 | 6 97 2 Regions Visited 2 Branch Regions 1 Pre-discovered Areas 1 | . 1 . Known Exits Taken . | . . . Unknown Exits Taken 2 | 1 1 . Scrap Searched . | . . . Spaces Dug . | . . . Terrain Destroyed . | . . . Melee . | . . . Projectile . | . . . AOE . | . . . Terrain Rammed . | . . . Walls Destroyed . | . . . Machines Disabled . | . . . Actions | -11 -10 -10 --------- Run | Yrd Mat Sub Total 1459 | 87 1329 43 Wait 548 | . 533 15 Move 786 | 67 713 6 Hop . | . . . Pick Up 9 | 3 6 . Fast Attach 11 | 7 4 . Attach . | . . . Detach . | . . . Swap 7 | . 6 1 Drop 3 | . 3 . Fire 82 | 10 58 14 Melee . | . . . Ram . | . . . Kick . | . . . Crush 13 | . 6 7 Escape Stasis . | . . . Rewire . | . . . Trap . | . . . Miscellaneous . | . . . Route ------- -11/Scrapyard -10/Materials (discovered 6 exits: [*Mat x3] / [*Min x2] / [*Sub]) -10/Subcaves (discovered 2 exits: Mat x2) History --------- Turn | Location | Event 21 | -11/Scrapyard | Discovered new exit (range 16) 147 | -11/Scrapyard | Entered Materials 300 | -10/Materials | Build established: Mutant 778 | -10/Materials | Central database locked down 862 | -10/Materials | Discovered new exit (range 3) 1000 | -10/Materials | Discovered new exit (range 7) 1047 | -10/Materials | Derelicts attacked the area 1333 | -10/Materials | Discovered new exit (range 11) 1480 | -10/Materials | Discovered new exit (range 7) 1555 | -10/Materials | Repaired Assault Rifle 1653 | -10/Materials | Discovered new exit (range 4) 1703 | -10/Materials | Loaded intel: 10 trap records 1770 | -10/Materials | Learned location of 2 exits from Mines 1782 | -10/Materials | Discovered new exit (range 11) 1875 | -10/Materials | Learned location of 3 exits from Materials 1943 | -10/Materials | Learned Storage stockpile data 1961 | -10/Materials | Learned location of Mines (-10) 2024 | -10/Materials | Entered Subcaves 2025 | -10/Subcaves | Identified exit to Materials 2027 | -10/Subcaves | Ambushed by Subdwellers from Twisted Machinery 2057 | -10/Subcaves | Core integrity fell below 50% 2079 | -10/Subcaves | Core integrity fell below 20% 2100 | -10/Subcaves | Destroyed by 8K-SXX(R) with Subdweller Beam Cannon Last Messages --------------- 02046_ 8K-SXX(R) suffers critical hit (Burn). 02055_ 1F-HX2(R) suffers critical hit (Burn). 02061_ Sub. Machine Gun melted. 02061_ 1F-HX2(R) destroyed. 02061_ Switching to secondary target: 8K-SXX(R). 02062_ Subatomizers dissect the Sub. Optics. 02070_ Lgt. Armor Plating destroyed. 02074_ Med. Laser destroyed. 02076_ Subatomizers dissect the Sub. Optics. 02082_ Assault Rifle destroyed. 02089_ Slammed into 8K-SXX(R). 02090_ Subatomizers dissect the Sub. Optics. 02090_ Slammed into 8K-SXX(R). 02090_ 8K-SXX(R) knocked back. 02092_ Slammed into 8K-SXX(R). 02094_ Lgt. Ion Engine destroyed. 02095_ Slammed into 8K-SXX(R). 02098_ Lgt. Treads destroyed. 02098_ Slammed into 8K-SXX(R). 02100_ Lgt. Treads destroyed. Map ----- +----------------------------------------------------+ | ?????????????????????????????????????????????????? | | ?????????????????????????????????????????????????? | | ?????????????????????????????????????????????????? | | ?????????????????????????????????????????????????? | | ?????????????????????????????????????????????????? | | ?????????????????????????????????????????????????? | | ?????????????????????????????????????????????????? | | ?????????????????????????????????????????????????? | | ?????????????????????????????????????????????????? | | ?????????????????????????????????????????????????? | | ?????????????????????????????????????????????????? | | ?????????????????????????????????????????????????? | | ???????????????##????????????????????????????????? | | ???????????????# ???????????????????????????????? | | ???????????????## #??????????????????????????????? | | ???????????????# ###??##???????????????????????? | | ???????????????## # ### ##?????????????????????? | | ???????????????# #?????????????????????? | | ????????????????# ###???????????????????? | | ????????????????##### ; #???????????????????? | | ????????????????????# ;##???????????????????? | | ????????????????????# !;#???????????????????? | | ????????????????????## !%;##??????????????????? | | ?????????????????????## ###????????????????? | | ??????????????????????# ##???????????????? | | ??????????????????????##$@R #???????????????? | | ???????????????????????# # #???????????????? | | ??????????????????????# ## ## #??????????????? | | ????????????????????? #? #?? "#?????????????? | | ???????????????????? ? ?? ""#?????????????? | | ??????????????????? $ "? ?? " #?????????????? | | ?????????????????? "?"# #?""""?????????????? | | ?????????????????####### ??#"#"???"??????????????? | | ???????????????????????##???#?""?????????????????? | | ?????????????????????????????????????????????????? | | ?????????????????????????????????????????????????? | | ?????????????????????????????????????????????????? | | ?????????????????????????????????????????????????? | | ?????????????????????????????????????????????????? | | ?????????????????????????????????????????????????? | | ?????????????????????????????????????????????????? | | ?????????????????????????????????????????????????? | | ?????????????????????????????????????????????????? | | ?????????????????????????????????????????????????? | | ?????????????????????????????????????????????????? | | ?????????????????????????????????????????????????? | | ?????????????????????????????????????????????????? | | ?????????????????????????????????????????????????? | | ?????????????????????????????????????????????????? | | ?????????????????????????????????????????????????? | +----------------------------------------------------+ Best States ------------- Heat Dissipation 25 Energy Generation 10 Energy Capacity 250 Matter Stores 300 Matter Capacity 300 Sight Range 16 Terrain Scan Density 10 Armor Coverage 150 Evasion (%) 50 Recoil Reduction 2 Item Schematics ----------------- None Robot Schematics ------------------ None Fabricated ------------ Nothing Repaired ---------- Assault Rifle | 9% | -10/Materials Alien Tech Used ----------------- None Achievements -------------- None Challenges ------------ None Game ------ Seed SurgeMappingCleaver Manual? 0 Play Time 00:07:47 Cumulative 180.9 hours Start 2025.08.25 @ 14:39:04 End 2025.08.25 @ 14:46:13 Sessions 1 Manual Loads 0 Difficulty Rogue Special Mode None Game No. 100 Rogue 100 Adventurer 0 Explorer 0 Win Type - Total 19 Types 9/1/5/1/0/1/1/1/0/0 Lore% 70 Gallery% 63 Achievement% 70 Wizard Run 0 Options --------- Layout 1 ASCII 0 Keyboard 0 Movement Arrows Keybinds 0 Fullscreen 2 Font 24/Tamsyn Map View 50x35 Zoom Use 0% Tactical HUD 1 Map Filters NONE Filters NONE Steam 1 RUN: 8b9a0d20-5eac-4c37-893e-52cd23af10ac